{"text_format":"1","workbook":"xlsx","n_sheets":13,"sheets":["GIOCO PALLONCINO","Kumite Girone A esordienti","Kumite Girone A Under 12 ","KumiteGirone A Under 10","PERCORSOParallelo Individuale","PERCORSO Parallelo a Squadre","Girone C Kata Indiiduale","Girone C DUAL KATA"," KUMITE NIHON Girone C","KUMITE SANBON Girone C","KUMITE IPPON Girone B","kata shotokan tradizionale","Foglio1"],"not_rendered":{"charts":0,"images":0,"macros":1,"external_links":0,"defined_names":7,"comments":0,"pivot_tables":0},"unopened":[],"bounds":{"document_bytes":16777216,"sheet_cells":100000,"rows_first":2000,"rows_last":500,"rows_between":2000,"halvings":0,"cell_chars":16384,"cell_head_chars":4096},"cells_cut":0,"cells_raw":0,"read":"whole","date_system":"1900"}

{"sheet":"GIOCO PALLONCINO","index":0,"n_rows":47,"n_cols":12,"rows_kept":47,"cut":false,"hidden":false,"merged":[[0,1,0,2],[1,2,1,3],[46,1,46,2],[2,2,2,3],[18,1,18,15]]}
[null,"PRIMA OPEN CUP"]
[null,"Società:","Nome società"]
[null,"Specialità:","Gioco Palloncino"]
["NR,","COGNOME","NOME","Data di Nascita","Anni","CATEGORIA","M/F",null,null," "]
[1,null,null,null,null,null,null,null,null,"Bianca",null,"Maschio"]
[2,null,null,null,null,null,null,null,null,"GIALLA /ARANCIO",null,"Femmina"]
[3,null,null,null,null,null,null,null,null,"VERDE/BLU"]
[4,null,null,null,null,null,null,null,null,"MARRONE/NERA"]
[5]
[6]
[7]
[8]
[9,null,null,null,{"$f":"IF(D13=\"\",\"\",DATEDIF(D13,TODAY(),\"Y\"))","v":""}]
[10,null,null,null,""]
[11,null,null,null,""]
[12,null,null,null,""]
[13,null,null,null,""]
[14,null,null,null,""]
[15,"GARA NON PRESENTE"]
[16,null,null,null,""]
[17,null,null,null,""]
[18,null,null,null,""]
[19,null,null,null,""]
[20,null,null,null,""]
[21,null,null,null,""]
[22,null,null,null,""]
[23,null,null,null,""]
[24,null,null,null,""]
[25,null,null,null,""]
[26,null,null,null,""]
[27,null,null,null,""]
[28,null,null,null,""]
[29,null,null,null,""]
[30,null,null,null,""]
[31,null,null,null,""]
[32,null,null,null,""]
[33,null,null,null,""]
[34,null,null,null,""]
[35,null,null,null,""]
[36,null,null,null,""]
[37,null,null,null,""]
[38,null,null,null,""]
[39,null,null,null,""]
[40,null,null,null,""]
[]
[]
[null,"N.B. La coonna ANNI si compila auomaticamente"]

{"sheet":"Kumite Girone A esordienti","index":1,"n_rows":47,"n_cols":22,"rows_kept":47,"cut":false,"hidden":false,"merged":[[0,1,0,2],[1,2,1,3],[2,2,2,8],[46,1,46,2]]}
[null,"PRIMA OPEN CUP"]
[null,"Società:","Nome società"]
[null,"Specialità:","KUMTE Sportivo GIRONE \"A\"ESORDIENTI: 12/13 ANNI CINTURA BLU/MARRONE                      "]
["NR,","COGNOME","NOME","Data di Nascita","Anni","M/F","Peso  M.","Peso F.","Cintura"]
[1,null,null,null,{"$f":"IF(D5=\"\",\"\",DATEDIF(D5,TODAY(),\"Y\"))","v":""}]
[2,null,null,null,{"$f":"IF(D6=\"\",\"\",DATEDIF(D6,TODAY(),\"Y\"))","v":""},null,null,null,null,null,null,null,null,null,null,null,null,null,null,null,"M"]
[3,null,null,null,"",null,null,null,null,null,null,null,null,null,null,null,"Bambini 6-7 anni","Bambine 6-7 anni",null,null,"Fino a 38","Fino a 35"]
[4,null,null,null,"",null,null,null,null,null,null,null,null,"Bianca","Bambini 6-7 anni","Maschio",-25,{"$f":"M15-25","v":-25},null,null,"Fino a 43","Fino a 40"]
[5,null,null,null,"",null,null,null,null,null,null,null,null,"Gialla Arancio","Ragazzi (8-9 anni)","Femmina",-30,-30,null,null,"Fino a 48","Fino a 45"]
[6,null,null,null,"",null,null,null,null,null,null,null,null,"Verde Blu","Speranze (10-11 anni)",null,-35,-35,null,null,"Fino a 53","Fino a 50"]
[7,null,null,null,"",null,null,null,null,null,null,null,null,"Marrone Nera","Esordienti (12-13 anni),",null,-40,"Più 35",null,null,"Fino a 58","Fino a 56"]
[8,null,null,null,"",null,null,null,null,null,null,null,null,null,null,null,"Più 40","Ragazzi 8-9anni",null,null,"Fino a 63","Fino a 62"]
[9,null,null,null,"",null,null,null,null,null,null,null,null,"Blu",null,null,"Ragazzi 8-9anni",-35,null,null,"Fino a 68","Fino a 68"]
[10,null,null,null,"",null,null,null,null,null,null,"Categoria",null,"Marrone",null,null,-30,-40,null,null,"Fino a 75","Oltre 68"]
[11,null,null,null,"",null,null,null,null,null,null,null,null,null,null,null,-35,"Più 40",null,null,"Oltre 75"]
[12,null,null,null,"",null,null,null,null,null,null,null,null,null,null,null,-40,"Speranze 10-11 anni"]
[13,null,null,null,"",null,null,null,null,null,null,null,null,null,null,null,-45,-37]
[14,null,null,null,"",null,null,null,null,null,null,null,null,null,null,null,"Più 45",-42]
[15,null,null,null,"",null,null,null,null,null,null,null,null,null,null,null,"Speranze 10-11 anni","Più 42"]
[16,null,null,null,"",null,null,null,null,null,null,null,null,null,null,null,-35,"Esordienti 12-13 anni"]
[17,null,null,null,"",null,null,null,null,null,null,null,null,null,null,null,-40,-42]
[18,null,null,null,"",null,null,null,null,null,null,null,null,null,null,null,-45,-47]
[19,null,null,null,"",null,null,null,null,null,null,null,null,null,null,null,-50,"Più 47"]
[20,null,null,null,"",null,null,null,null,null,null,null,null,null,null,null,50]
[21,null,null,null,"",null,null,null,null,null,null,null,null,null,null,null,"Esordienti 12-13 anni"]
[22,null,null,null,"",null,null,null,null,null,null,null,null,null,null,null,-45]
[23,null,null,null,"",null,null,null,null,null,null,null,null,null,null,null,-50]
[24,null,null,null,"",null,null,null,null,null,null,null,null,null,null,null,-55]
[25,null,null,null,"",null,null,null,null,null,null,null,null,null,null,null,-60]
[26,null,null,null,"",null,null,null,null,null,null,null,null,null,null,null,"Più 60"]
[27,null,null,null,""]
[28,null,null,null,""]
[29,null,null,null,""]
[30,null,null,null,""]
[31,null,null,null,""]
[32,null,null,null,""]
[33,null,null,null,""]
[34,null,null,null,""]
[35,null,null,null,""]
[36,null,null,null,""]
[37,null,null,null,""]
[38,null,null,null,""]
[39,null,null,null,""]
[40,null,null,null,""]
[]
[]
[null,"N.B. La coonna ANNI si compila auomaticamente"]

{"sheet":"Kumite Girone A Under 12 ","index":2,"n_rows":47,"n_cols":22,"rows_kept":47,"cut":false,"hidden":false,"merged":[[0,1,0,2],[1,2,1,3],[2,2,2,8],[46,1,46,2]]}
[null,"PRIMA OPEN CUP"]
[null,"Società:","Nome società"]
[null,"Specialità:","KUMTE Sportivo GIRONE \"A\"UNDER 12: Classe 10/11 Anni                   "]
["NR,","COGNOME","NOME","Data di Nascita","Anni","M/F","Peso  M.","Peso F.","Cintura"]
[1,null,null,null,{"$f":"IF(D5=\"\",\"\",DATEDIF(D5,TODAY(),\"Y\"))","v":""}]
[2,null,null,null,{"$f":"IF(D6=\"\",\"\",DATEDIF(D6,TODAY(),\"Y\"))","v":""},null,null,null,null,null,null,null,null,null,null,null,null,null,null,null,"M"]
[3,null,null,null,"",null,null,null,null,null,null,null,null,null,null,null,"Bambini 6-7 anni","Bambine 6-7 anni",null,null,"Fino a 38","Fino a 35"]
[4,null,null,null,"",null,null,null,null,null,null,null,null,"Bianca","Bambini 6-7 anni","Maschio",-25,{"$f":"M15-25","v":-25},null,null,"Fino a 43","Fino a 40"]
[5,null,null,null,"",null,null,null,null,null,null,null,null,"Gialla Arancio","Ragazzi (8-9 anni)","Femmina",-30,-30,null,null,"Fino a 48","Fino a 45"]
[6,null,null,null,"",null,null,null,null,null,null,null,null,"Verde Blu","Speranze (10-11 anni)",null,-35,-35,null,null,"Fino a 53","Fino a 50"]
[7,null,null,null,"",null,null,null,null,null,null,null,null,"Marrone Nera","Esordienti (12-13 anni),",null,-40,"Più 35",null,null,"Fino a 58","Fino a 56"]
[8,null,null,null,"",null,null,null,null,null,null,null,null,null,null,null,"Più 40","Ragazzi 8-9anni",null,null,"Fino a 63","Fino a 62"]
[9,null,null,null,"",null,null,null,null,null,null,null,null,"Blu",null,null,"Ragazzi 8-9anni",-35,null,null,"Fino a 68","Fino a 68"]
[10,null,null,null,"",null,null,null,null,null,null,"Categoria",null,"Marrone",null,null,-30,-40,null,null,"Fino a 75","Oltre 68"]
[11,null,null,null,"",null,null,null,null,null,null,null,null,null,null,null,-35,"Più 40",null,null,"Oltre 75"]
[12,null,null,null,"",null,null,null,null,null,null,null,null,"Bianca ",null,null,-40,"Speranze 10-11 anni"]
[13,null,null,null,"",null,null,null,null,null,null,null,null,"Gialla",null,null,-45,-37]
[14,null,null,null,"",null,null,null,null,null,null,null,null,"Arancio",null,null,"Più 45",-42]
[15,null,null,null,"",null,null,null,null,null,null,null,null,"Verde",null,null,"Speranze 10-11 anni","Più 42",null,null,-32]
[16,null,null,null,"",null,null,null,null,null,null,null,null,"Blu",null,null,-35,"Esordienti 12-13 anni",null,null,-37]
[17,null,null,null,"",null,null,null,null,null,null,null,null,"Marrone",null,null,-40,-42,null,null,-42]
[18,null,null,null,"",null,null,null,null,null,null,null,null,null,null,null,-45,-47,null,null,-47]
[19,null,null,null,"",null,null,null,null,null,null,null,null,null,null,null,-50,"Più 47",null,null,"Più 47"]
[20,null,null,null,"",null,null,null,null,null,null,null,null,null,null,null,50]
[21,null,null,null,"",null,null,null,null,null,null,null,null,null,null,null,"Esordienti 12-13 anni"]
[22,null,null,null,"",null,null,null,null,null,null,null,null,null,null,null,-45]
[23,null,null,null,"",null,null,null,null,null,null,null,null,null,null,null,-50]
[24,null,null,null,"",null,null,null,null,null,null,null,null,null,null,null,-55]
[25,null,null,null,"",null,null,null,null,null,null,null,null,null,null,null,-60]
[26,null,null,null,"",null,null,null,null,null,null,null,null,null,null,null,"Più 60"]
[27,null,null,null,""]
[28,null,null,null,""]
[29,null,null,null,""]
[30,null,null,null,""]
[31,null,null,null,""]
[32,null,null,null,""]
[33,null,null,null,""]
[34,null,null,null,""]
[35,null,null,null,""]
[36,null,null,null,""]
[37,null,null,null,""]
[38,null,null,null,""]
[39,null,null,null,""]
[40,null,null,null,""]
[]
[]
[null,"N.B. La coonna ANNI si compila auomaticamente"]

{"sheet":"KumiteGirone A Under 10","index":3,"n_rows":47,"n_cols":22,"rows_kept":47,"cut":false,"hidden":false,"merged":[[0,1,0,2],[1,2,1,3],[2,2,2,8],[46,1,46,2]]}
[null,"PRIMA OPEN CUP"]
[null,"Società:","Nome società"]
[null,"Specialità:","GIRONE \"A\" KUMTE Sportivo UNDER 10: Classe 8/9 Anni                   "]
["NR,","COGNOME","NOME","Data di Nascita","Anni","M/F","Peso  M.","Peso F.","Cintura"]
[1,null,null,null,{"$f":"IF(D5=\"\",\"\",DATEDIF(D5,TODAY(),\"Y\"))","v":""}]
[2,null,null,null,{"$f":"IF(D6=\"\",\"\",DATEDIF(D6,TODAY(),\"Y\"))","v":""},null,null,null,null,null,null,null,null,null,null,null,null,null,null,null,"M"]
[3,null,null,null,"",null,null,null,null,null,null,null,null,null,null,null,"Bambini 6-7 anni","Bambine 6-7 anni",null,null,"Fino a 38","Fino a 35"]
[4,null,null,null,"",null,null,null,null,null,null,null,null,"Bianca","Bambini 6-7 anni","Maschio",-25,{"$f":"M15-25","v":-25},null,null,"Fino a 43","Fino a 40"]
[5,null,null,null,"",null,null,null,null,null,null,null,null,"Gialla Arancio","Ragazzi (8-9 anni)","Femmina",-30,-30,null,null,"Fino a 48","Fino a 45"]
[6,null,null,null,"",null,null,null,null,null,null,null,null,"Verde Blu","Speranze (10-11 anni)",null,-35,-35,null,null,"Fino a 53","Fino a 50"]
[7,null,null,null,"",null,null,null,null,null,null,null,null,"Marrone Nera","Esordienti (12-13 anni),",null,-40,"Più 35",null,null,"Fino a 58","Fino a 56"]
[8,null,null,null,"",null,null,null,null,null,null,null,null,null,null,null,"Più 40","Ragazzi 8-9anni",null,null,"Fino a 63","Fino a 62"]
[9,null,null,null,"",null,null,null,null,null,null,null,null,"Blu",null,null,"Ragazzi 8-9anni",-35,null,null,"Fino a 68","Fino a 68"]
[10,null,null,null,"",null,null,null,null,null,null,"Categoria",null,"Marrone",null,null,-30,-40,null,null,"Fino a 75","Oltre 68"]
[11,null,null,null,"",null,null,null,null,null,null,null,null,null,null,null,-35,"Più 40",null,null,"Oltre 75"]
[12,null,null,null,"",null,null,null,null,null,null,null,null,"Bianca ",null,null,-40,"Speranze 10-11 anni"]
[13,null,null,null,"",null,null,null,null,null,null,null,null,"Gialla",null,null,-45,-37]
[14,null,null,null,"",null,null,null,null,null,null,null,null,"Arancio",null,null,"Più 45",-42]
[15,null,null,null,"",null,null,null,null,null,null,null,null,"Verde",null,null,"Speranze 10-11 anni","Più 42",null,null,-32]
[16,null,null,null,"",null,null,null,null,null,null,null,null,"Blu",null,null,-35,"Esordienti 12-13 anni",null,null,-37]
[17,null,null,null,"",null,null,null,null,null,null,null,null,"Marrone",null,null,-40,-42,null,null,-42]
[18,null,null,null,"",null,null,null,null,null,null,null,null,null,null,null,-45,-47,null,null,-47]
[19,null,null,null,"",null,null,null,null,null,null,null,null,null,null,null,-50,"Più 47",null,null,"Più 47"]
[20,null,null,null,"",null,null,null,null,null,null,null,null,null,null,null,50]
[21,null,null,null,"",null,null,null,null,null,null,null,null,null,null,null,"Esordienti 12-13 anni"]
[22,null,null,null,"",null,null,null,null,null,"Kumite ",null,null,null,null,null,-45,null,null,null,-22]
[23,null,null,null,"",null,null,null,null,null,null,null,null,null,null,null,-50,null,null,null,-27]
[24,null,null,null,"",null,null,null,null,null,null,null,null,null,null,null,-55,null,null,null,-32]
[25,null,null,null,"",null,null,null,null,null,null,null,null,null,null,null,-60,null,null,null,-37]
[26,null,null,null,"",null,null,null,null,null,null,null,null,null,null,null,"Più 60",null,null,null,"Più37"]
[27,null,null,null,""]
[28,null,null,null,""]
[29,null,null,null,""]
[30,null,null,null,""]
[31,null,null,null,""]
[32,null,null,null,""]
[33,null,null,null,""]
[34,null,null,null,""]
[35,null,null,null,""]
[36,null,null,null,""]
[37,null,null,null,""]
[38,null,null,null,""]
[39,null,null,null,""]
[40,null,null,null,""]
[]
[]
[null,"N.B. La coonna ANNI si compila auomaticamente"]

{"sheet":"PERCORSOParallelo Individuale","index":4,"n_rows":49,"n_cols":12,"rows_kept":49,"cut":false,"hidden":false,"merged":[[0,1,0,2],[1,2,1,3],[2,2,2,6],[46,1,46,3]]}
[null,"PRIMA OPEN CUP"]
[null,"Società:","Nome società"]
[null,"Specialità:","GIRONE \"C\" Percorso PARALLELO INDIVDUALE"]
["NR,","COGNOME","NOME","Data di Nascita","Anni","CATEGORIA","M/F",null,null," "]
[1,"Paolo",null,null,{"$f":"IF(D5=\"\",\"\",DATEDIF(D5,TODAY(),\"Y\"))","v":""},{"$f":"IF(D5=\"\",\"\",IF(E5>9,\"NO CATEGORIA\",IF(E5>7,\"Ragazzi 8-9 anni\",IF(E5<7,\"Fino a 7 anni\"))))","v":""},"Maschio",null,null,"Bianca",null,"Maschio"]
[2,null,null,null,"","",null,null,null,"GIALLA /ARANCIO",null,"Femmina"]
[3,null,null,null,"","",null,null,null,"VERDE/BLU"]
[4,null,null,null,"","",null,null,null,"MARRONE/NERA"]
[5,null,null,null,"",""]
[6,null,null,null,"",""]
[7,null,null,null,"",""]
[8,null,null,null,"",""]
[9,null,null,null,"",""]
[10,null,null,null,"",""]
[11,null,null,null,"",""]
[12,null,null,null,"",""]
[13,null,null,null,"",""]
[14,null,null,null,"",""]
[15,null,null,null,"",""]
[16,null,null,null,"",""]
[17,null,null,null,"",""]
[18,null,null,null,"",""]
[19,null,null,null,"",""]
[20,null,null,null,"",""]
[21,null,null,null,"",""]
[22,null,null,null,"",""]
[23,null,null,null,"",""]
[24,null,null,null,"",""]
[25,null,null,null,"",""]
[26,null,null,null,"",""]
[27,null,null,null,"",""]
[28,null,null,null,"",""]
[29,null,null,null,"",""]
[30,null,null,null,"",""]
[31,null,null,null,"",""]
[32,null,null,null,"",""]
[33,null,null,null,"",""]
[34,null,null,null,"",""]
[35,null,null,null,"",""]
[36,null,null,null,"",""]
[37,null,null,null,"",""]
[38,null,null,null,"",""]
[39,null,null,null,"",""]
[40,null,null,null,"",""]
[]
[]
[null,"N.B. La coonna ANNI  e categoria si compilano auomaticamente"]
[]
[null,"Inserire Cognome -Nome- data di nascita -"]

{"sheet":"PERCORSO Parallelo a Squadre","index":5,"n_rows":49,"n_cols":16,"rows_kept":49,"cut":false,"hidden":false,"merged":[[38,7,39,7],[40,7,41,7],[42,7,43,7],[28,7,29,7],[30,7,31,7],[32,7,33,7],[34,7,35,7],[36,7,37,7],[2,2,2,6],[46,1,46,3],[0,1,0,2],[1,2,1,3],[4,7,5,7],[6,7,7,7],[8,7,9,7],[10,7,11,7],[12,7,13,7],[14,7,15,7],[16,7,17,7],[18,7,19,7],[20,7,21,7],[22,7,23,7],[24,7,25,7],[26,7,27,7]]}
[null,"PRIMA OPEN CUP"]
[null,"Società:","Nome società"]
[null,"Specialità:","Girone \"C\" Percorso PARALLELO a Squadre"]
["NR,","COGNOME","NOME","Data di Nascita","Anni","CATEGORIA","M/F","Squadra",null," "]
[1,null,null,null,{"$f":"IF(D5=\"\",\"\",DATEDIF(D5,TODAY(),\"Y\"))","v":""},{"$f":"IF(D5=\"\",\"\",IF(E5>9,\"NO CATEGORIA\",IF(E5>7,\"Ragazzi 8-9 anni\",IF(E5<7,\"Fino a 7 anni\"))))","v":""},null,"A",null,"Bianca",null,"Maschio",null,null,null,"Fino a 7 Anni"]
[2,null,null,null,{"$f":"IF(D6=\"\",\"\",DATEDIF(D6,TODAY(),\"Y\"))","v":""},{"$f":"IF(D6=\"\",\"\",IF(E6>9,\"NO CATEGORIA\",IF(E6>7,\"Ragazzi 8-9 anni\",IF(E6<7,\"Fino a 7 anni\"))))","v":""},null,null,null,"GIALLA /ARANCIO",null,"Femmina",null,null,null,"Ragazzi 8-9 anni"]
[3,null,null,null,"","",null,"B",null,"VERDE/BLU"]
[4,null,null,null,"","",null,null,null,"MARRONE/NERA"]
[5,null,null,null,"","",null,"C"]
[6,null,null,null,"",""]
[7,null,null,null,"","",null,"D"]
[8,null,null,null,"",""]
[9,null,null,null,"","",null,"E"]
[10,null,null,null,"",""]
[11,null,null,null,"","",null,"F"]
[12,null,null,null,"",""]
[13,null,null,null,"","",null,"G"]
[14,null,null,null,"",""]
[15,null,null,null,"","",null,"H"]
[16,null,null,null,"",""]
[17,null,null,null,"","",null,"I"]
[18,null,null,null,"",""]
[19,null,null,null,"","",null,"L"]
[20,null,null,null,"",""]
[21,null,null,null,"","",null,"M"]
[22,null,null,null,"",""]
[23,null,null,null,"","",null,"N"]
[24,null,null,null,"",""]
[25,null,null,null,"","",null,"O"]
[26,null,null,null,"",""]
[27,null,null,null,"","",null,"P"]
[28,null,null,null,"",""]
[29,null,null,null,"","",null,"Q"]
[30,null,null,null,"",""]
[31,null,null,null,"","",null,"R"]
[32,null,null,null,"",""]
[33,null,null,null,"","",null,"S"]
[34,null,null,null,"",""]
[35,null,null,null,"","",null,"T"]
[36,null,null,null,"",""]
[37,null,null,null,"","",null,"U"]
[38,null,null,null,"",""]
[39,null,null,null,"","",null,"V"]
[40,null,null,null,"",""]
[]
[]
[null,"N.B. La coonna ANNI  e categoria si compilano auomaticamente"]
[]
[null,"Inserire Cognome -Nome- data di nascita -"]

{"sheet":"Girone C Kata Indiiduale","index":6,"n_rows":47,"n_cols":24,"rows_kept":47,"cut":false,"hidden":false,"merged":[[46,1,46,2],[0,1,0,2],[1,2,1,3],[2,2,2,4]]}
[null,"PRIMA OPEN CUP"]
[null,"Società:","Nome società"]
[null,"Specialità:","GIRONE \"C\" Kata Individuale"]
["NR,","COGNOME","NOME","Data di Nascita","Anni","Cintura","M/F","Categoria",null," "]
[1,"a",null,null,{"$f":"IF(D5=\"\",\"\",DATEDIF(D5,TODAY(),\"Y\"))","v":""},null,null,{"$f":"IF(D5=\"\",\"\",IF(E5>50,\"Veterani B 51-65anni\",IF(E5>40,\"Veterani A 41-50 anni\",IF(E5>17,\"Seniores 18-40 anni\",IF(E5>15,\"Juniores 16-17 anni\",IF(E5>13,\"Cadetti 14- 15 anni\",IF(E5>11,\"Esordienti (12-13 anni)\",IF(E5>9,\"Speranze (10-11 anni)\",IF(E5>7,\"Ragazzi (8-9 anni)\",\"Bambini 6-7 anni\")))))))))","v":""},null,null,null,"Maschio"]
[2,"b",null,null,{"$f":"IF(D6=\"\",\"\",DATEDIF(D6,TODAY(),\"Y\"))","v":""},null,null,{"$f":"IF(D6=\"\",\"\",IF(E6>50,\"Veterani B 51-65anni\",IF(E6>40,\"Veterani A 41-50 anni\",IF(E6>17,\"Seniores 18-40 anni\",IF(E6>15,\"Juniores 16-17 anni\",IF(E6>13,\"Cadetti 14- 15 anni\",IF(E6>11,\"Esordienti (12-13 anni)\",IF(E6>9,\"Speranze (10-11 anni)\",IF(E6>7,\"Ragazzi (8-9 anni)\",\"Bambini 6-7 anni\")))))))))","v":""},null,null,null,"Femmina",null,null,null,null,null,null,null,null,null,"Bianca",null,"Bambini 6-7 anni"]
[3,"C",null,null,"",null,null,"",null,null,null,null,null,null,null,null,null,null,null,null,null,"GIALLA /ARANCIO",null,"Ragazzi (8-9 anni)"]
[4,"d",null,null,"",null,null,"",null,null,null,null,null,null,null,null,null,null,null,null,null,"VERDE/BLU",null,"Speranze (10-11 anni)"]
[5,"e",null,null,"",null,null,"",null,null,null,null,null,null,null,null,null,null,null,null,null,"MARRONE/NERA",null,"Esordienti (12-13 anni),"]
[6,"f",null,null,"",null,null,"",null,null,null,null,null,null,null,null,null,null,null,null,null,null,null,"Cadetti 14- 15 anni"]
[7,"g",null,null,"",null,null,"",null,null,null,null,null,null,null,null,null,null,null,null,null,null,null,"Juniores 16-17 anni"]
[8,"h",null,null,"",null,null,"",null,null,null,null,null,null,null,null,null,null,null,null,null,null,null,"Seniores 18-40 anni"]
[9,null,null,null,"",null,null,"",null,null,null,null,null,null,null,null,null,null,null,null,null,null,null,"Veterani A 41-50 anni"]
[10,null,null,null,"",null,null,"",null,null,null,null,null,null,null,null,null,null,null,null,null,null,null,"Veterani B 51-65anni"]
[11,null,null,null,"",null,null,""]
[12,null,null,null,"",null,null,""]
[13,null,null,null,"",null,null,""]
[14,null,null,null,"",null,null,""]
[15,null,null,null,"",null,null,""]
[16,null,null,null,"",null,null,""]
[17,null,null,null,"",null,null,""]
[18,null,null,null,"",null,null,""]
[19,null,null,null,"",null,null,""]
[20,null,null,null,"",null,null,""]
[21,null,null,null,"",null,null,""]
[22,null,null,null,"",null,null,""]
[23,null,null,null,"",null,null,""]
[24,null,null,null,"",null,null,""]
[25,null,null,null,"",null,null,""]
[26,null,null,null,"",null,null,""]
[27,null,null,null,"",null,null,""]
[28,null,null,null,"",null,null,""]
[29,null,null,null,"",null,null,""]
[30,null,null,null,"",null,null,""]
[31,null,null,null,"",null,null,""]
[32,null,null,null,"",null,null,""]
[33,null,null,null,"",null,null,""]
[34,null,null,null,"",null,null,""]
[35,null,null,null,"",null,null,""]
[36,null,null,null,"",null,null,""]
[37,null,null,null,"",null,null,""]
[38,null,null,null,"",null,null,""]
[39,null,null,null,"",null,null,""]
[40,null,null,null,"",null,null,""]
[]
[]
[null,"N.B. La coonna ANNI si compila auomaticamente"]

{"sheet":"Girone C DUAL KATA","index":7,"n_rows":47,"n_cols":24,"rows_kept":47,"cut":false,"hidden":false,"merged":[[38,8,39,8],[40,8,41,8],[42,8,43,8],[28,8,29,8],[30,8,31,8],[32,8,33,8],[34,8,35,8],[36,8,37,8],[0,1,0,2],[1,2,1,3],[2,2,2,3],[46,1,46,2],[4,8,5,8],[6,8,7,8],[8,8,9,8],[10,8,11,8],[12,8,13,8],[14,8,15,8],[16,8,17,8],[18,8,19,8],[20,8,21,8],[22,8,23,8],[24,8,25,8],[26,8,27,8]]}
[null,"PRIMA OPEN CUP"]
[null,"Società:","Nome società"]
[null,"Specialità:","GIRONE \"C\" DUAL Kata"]
["NR,","COGNOME","NOME","Data di Nascita","Anni","Cintura","M/F","Categoria","SQUADRA"," "]
[1,null,null,null,{"$f":"IF(D5=\"\",\"\",DATEDIF(D5,TODAY(),\"Y\"))","v":""},null,null,{"$f":"IF(D5=\"\",\"\",IF(E5>50,\"Veterani B 51-65anni\",IF(E5>40,\"Veterani A 41-50 anni\",IF(E5>17,\"Seniores 18-40 anni\",IF(E5>15,\"Juniores 16-17 anni\",IF(E5>13,\"Cadetti 14- 15 anni\",IF(E5>11,\"Esordienti (12-13 anni)\",IF(E5>9,\"Speranze (10-11 anni)\",IF(E5>7,\"Ragazzi (8-9 anni)\",\"Bambini 6-7 anni\")))))))))","v":""},"A",null,null,"Maschio"]
[2,null,null,null,{"$f":"IF(D6=\"\",\"\",DATEDIF(D6,TODAY(),\"Y\"))","v":""},null,null,{"$f":"IF(D6=\"\",\"\",IF(E6>50,\"Veterani B 51-65anni\",IF(E6>40,\"Veterani A 41-50 anni\",IF(E6>17,\"Seniores 18-40 anni\",IF(E6>15,\"Juniores 16-17 anni\",IF(E6>13,\"Cadetti 14- 15 anni\",IF(E6>11,\"Esordienti (12-13 anni)\",IF(E6>9,\"Speranze (10-11 anni)\",IF(E6>7,\"Ragazzi (8-9 anni)\",\"Bambini 6-7 anni\")))))))))","v":""},null,null,null,"Femmina",null,null,null,null,null,null,null,null,null,"Bianca",null,"Bambini 6-7 anni"]
[3,null,null,null,"",null,null,"","B",null,null,null,null,null,null,null,null,null,null,null,null,"GIALLA /ARANCIO",null,"Ragazzi (8-9 anni)"]
[4,null,null,null,"",null,null,"",null,null,null,null,null,null,null,null,null,null,null,null,null,"VERDE/BLU",null,"Speranze (10-11 anni)"]
[5,null,null,null,"",null,null,"","C",null,null,null,null,null,null,null,null,null,null,null,null,"MARRONE/NERA",null,"Esordienti (12-13 anni),"]
[6,null,null,null,"",null,null,"",null,null,null,null,null,null,null,null,null,null,null,null,null,null,null,"Cadetti 14- 15 anni"]
[7,null,null,null,"",null,null,"","D",null,null,null,null,null,null,null,null,null,null,null,null,null,null,"Juniores 16-17 anni"]
[8,null,null,null,"",null,null,"",null,null,null,null,null,null,null,null,null,null,null,null,null,null,null,"Seniores 18-40 anni"]
[9,null,null,null,"",null,null,"","E",null,null,null,null,null,null,null,null,null,null,null,null,null,null,"Veterani A 41-50 anni"]
[10,null,null,null,"",null,null,"",null,null,null,null,null,null,null,null,null,null,null,null,null,null,null,"Veterani B 51-65anni"]
[11,null,null,null,"",null,null,"","F"]
[12,null,null,null,"",null,null,""]
[13,null,null,null,"",null,null,"","G"]
[14,null,null,null,"",null,null,""]
[15,null,null,null,"",null,null,"","H"]
[16,null,null,null,"",null,null,""]
[17,null,null,null,"",null,null,"","I"]
[18,null,null,null,"",null,null,""]
[19,null,null,null,"",null,null,"","L"]
[20,null,null,null,"",null,null,""]
[21,null,null,null,"",null,null,"","M"]
[22,null,null,null,"",null,null,""]
[23,null,null,null,"",null,null,"","N"]
[24,null,null,null,"",null,null,""]
[25,null,null,null,"",null,null,"","O"]
[26,null,null,null,"",null,null,""]
[27,null,null,null,"",null,null,"","P"]
[28,null,null,null,"",null,null,""]
[29,null,null,null,"",null,null,"","Q"]
[30,null,null,null,"",null,null,""]
[31,null,null,null,"",null,null,"","R"]
[32,null,null,null,"",null,null,""]
[33,null,null,null,"",null,null,"","S"]
[34,null,null,null,"",null,null,""]
[35,null,null,null,"",null,null,"","T"]
[36,null,null,null,"",null,null,""]
[37,null,null,null,"",null,null,"","U"]
[38,null,null,null,"",null,null,""]
[39,null,null,null,"",null,null,"","V"]
[40,null,null,"1978-10-12",46,null,null,"Veterani A 41-50 anni"]
[]
[]
[null,"N.B. La coonna ANNI si compila auomaticamente"]

{"sheet":" KUMITE NIHON Girone C","index":8,"n_rows":47,"n_cols":19,"rows_kept":47,"cut":false,"hidden":false,"merged":[[46,1,46,2],[0,1,0,2],[1,2,1,3],[2,2,2,9]]}
[null,"PRIMA OPEN CUP"]
[null,"Società:","Nome società"]
[null,"Specialità:","GIRONE \"C\" KUMTE Sportivo NIHON Bambini/Ragazzi/Speranze/ Esordienti"]
["NR,","COGNOME","NOME","Data di Nascita","Anni","Categoria","M/F","Peso  M.","Peso F.","Cintura"]
[1,null,null,null,{"$f":"IF(D5=\"\",\"\",DATEDIF(D5,TODAY(),\"Y\"))","v":""},{"$f":"IF(D5=\"\",\"\",IF(E5>13,\"NO CATEGORIA\",IF(E5>11,\"Esordienti12-13anni\",IF(E5>9,\"Speranze 10-11 anni\",IF(E5>7,\"Ragazzi 8-9 anni\",IF(E5>6,\"Bambini6-7 anni\",\"eta non ammessa\"))))))","v":""}]
[2,null,null,null,{"$f":"IF(D6=\"\",\"\",DATEDIF(D6,TODAY(),\"Y\"))","v":""},{"$f":"IF(D6=\"\",\"\",IF(E6>13,\"NO CATEGORIA\",IF(E6>11,\"Esordienti12-13anni\",IF(E6>9,\"Speranze 10-11 anni\",IF(E6>7,\"Ragazzi 8-9 anni\",IF(E6>6,\"Bambini6-7 anni\",\"eta non ammessa\"))))))","v":""}]
[3,null,null,null,"","",null,null,null,null,null,null,null,null,null,null,null,"Bambini 6-7 anni","Bambine 6-7 anni"]
[4,null,null,null,"","",null,null,null,null,null,null,null,null,"Bianca","Bambini 6-7 anni","Maschio",-25,{"$f":"N15-25","v":-25}]
[5,null,null,null,"","",null,null,null,null,null,null,null,null,"Gialla Arancio","Ragazzi (8-9 anni)","Femmina",-30,-30]
[6,null,null,null,"","",null,null,null,null,null,null,null,null,"Verde Blu","Speranze (10-11 anni)",null,-35,-35]
[7,null,null,null,"","",null,null,null,null,null,null,null,null,"Marrone Nera","Esordienti (12-13 anni),",null,-40,"Più 35"]
[8,null,null,null,"","",null,null,null,null,null,null,null,null,null,null,null,"Più 40","Ragazzi 8-9anni"]
[9,null,null,null,"","",null,null,null,null,null,null,null,null,null,null,null,"Ragazzi 8-9anni",-35]
[10,null,null,null,"","",null,null,null,null,null,null,"Categoria",null,null,null,null,-30,-40]
[11,null,null,null,"","",null,null,null,null,null,null,null,null,null,null,null,-35,"Più 40"]
[12,null,null,null,"","",null,null,null,null,null,null,null,null,null,null,null,-40,"Speranze 10-11 anni"]
[13,null,null,null,"","",null,null,null,null,null,null,null,null,null,null,null,-45,-37]
[14,null,null,null,"","",null,null,null,null,null,null,null,null,null,null,null,"Più 45",-42]
[15,null,null,null,"","",null,null,null,null,null,null,null,null,null,null,null,"Speranze 10-11 anni","Più 42"]
[16,null,null,null,"","",null,null,null,null,null,null,null,null,null,null,null,-35,"Esordienti 12-13 anni"]
[17,null,null,null,"","",null,null,null,null,null,null,null,null,null,null,null,-40,-42]
[18,null,null,null,"","",null,null,null,null,null,null,null,null,null,null,null,-45,-47]
[19,null,null,null,"","",null,null,null,null,null,null,null,null,null,null,null,-50,"Più 47"]
[20,null,null,null,"","",null,null,null,null,null,null,null,null,null,null,null,50]
[21,null,null,null,"","",null,null,null,null,null,null,null,null,null,null,null,"Esordienti 12-13 anni"]
[22,null,null,null,"","",null,null,null,null,null,null,null,null,null,null,null,-45]
[23,null,null,null,"","",null,null,null,null,null,null,null,null,null,null,null,-50]
[24,null,null,null,"","",null,null,null,null,null,null,null,null,null,null,null,-55]
[25,null,null,null,"","",null,null,null,null,null,null,null,null,null,null,null,-60]
[26,null,null,null,"","",null,null,null,null,null,null,null,null,null,null,null,"Più 60"]
[27,null,null,null,"",""]
[28,null,null,null,"",""]
[29,null,null,null,"",""]
[30,null,null,null,"",""]
[31,null,null,null,"",""]
[32,null,null,null,"",""]
[33,null,null,null,"",""]
[34,null,null,null,"",""]
[35,null,null,null,"",""]
[36,null,null,null,"",""]
[37,null,null,null,"",""]
[38,null,null,null,"",""]
[39,null,null,null,"",""]
[40,null,null,null,"",""]
[]
[]
[null,"N.B. La coonna ANNI si compila auomaticamente"]

{"sheet":"KUMITE SANBON Girone C","index":9,"n_rows":47,"n_cols":24,"rows_kept":47,"cut":false,"hidden":false,"merged":[[0,1,0,2],[1,2,1,3],[46,1,46,2],[2,2,2,10]]}
[null,"PRIMA OPEN CUP"]
[null,"Società:","Nome società"]
[null,"Specialità:","Girone \"C\" KUMTE Sportivo SANBON Cadetti/Juniores/Seniores/ Veterani  \"A\" e \"\"B\""]
["NR,","COGNOME","NOME","Data di Nascita","Anni","Categoria","Categoria","M/F","Peso  M.","Peso F.","Cintura"]
[1,null,null,null,{"$f":"IF(D5=\"\",\"\",DATEDIF(D5,TODAY(),\"Y\"))","v":""},{"$f":"IF(D5=\"\",\"\",IF(E5>50,\"Veterani B 51-65anni\",IF(E5>40,\"Veterani A 41-50 anni\",IF(E5>17,\"Seniores 18-40 anni\",IF(E5>15,\"Juniores 16-17 anni\",\"Cadetti 14- 15 anni\")))))","v":""}]
[2,null,null,null,"",{"$f":"IF(D6=\"\",\"\",IF(E6>50,\"Veterani B 51-65anni\",IF(E6>40,\"Veterani A 41-50 anni\",IF(E6>17,\"Seniores 18-40 anni\",IF(E6>15,\"Juniores 16-17 anni\",\"Cadetti 14- 15 anni\")))))","v":""}]
[3,null,null,null,"","",null,null,null,null,null,null,null,null,null,null,null,null,"Esordienti M-12/13 anni","Esordienti F.--12/13 anni",null,-52,null,-47]
[4,null,null,null,"","",null,null,null,null,null,null,null,null,null,"Bianca","Cadetti 14- 15 anni","Maschio",-45,"meno 42",null,-57,null,-55]
[5,null,null,null,"","",null,null,null,null,null,null,null,null,null,"Gialla Arancio","Juniores 16-17 anni","Femmina",-50,"meno47",null,-63,null,-60]
[6,null,null,null,"","",null,null,null,null,null,null,null,null,null,"Verde Blu","Seniores 18-40 anni",null,-55,"più 47",null,-70,null,-65]
[7,null,null,null,"","",null,null,null,null,null,null,null,null,null,"Marrone Nera","Veterani A 41-50 anni",null,-60,null,null,-75,null,-70]
[8,null,null,null,"","",null,null,null,null,null,null,null,null,null,null,"Veterani B 51-65anni",null,"più 60",null,null,-80,null,"Più70"]
[9,null,null,null,"","",null,null,null,null,null,null,null,null,null,null,null,null,"Cadetti (14-15 anni)","Cadetti (14-15 anni)",null,-85]
[10,null,null,null,"","",null,null,null,null,null,null,null,null,null,null,null,null,-52,-47,null,-90]
[11,null,null,null,"","",null,null,null,null,null,null,null,null,null,null,null,null,-57,-55,null,"Più90"]
[12,null,null,null,"","",null,null,null,null,null,null,null,null,null,null,null,null,-63,"Più55"]
[13,null,null,null,"","",null,null,null,null,null,null,null,null,null,null,null,null,-70,"Juniores (16-17 anni)"]
[14,null,null,null,"","",null,null,null,null,null,null,null,null,null,null,null,null,"più70",-50]
[15,null,null,null,"","",null,null,null,null,null,null,null,null,null,null,null,null,"Juniores (16-17 anni)",-58]
[16,null,null,null,"","",null,null,null,null,null,null,null,null,null,null,null,null,-55,"più 58"]
[17,null,null,null,"","",null,null,null,null,null,null,null,null,null,null,null,null,-61,"Seniores (18-40 anni)"]
[18,null,null,null,"","",null,null,null,null,null,null,null,null,null,null,null,null,-68,-55]
[19,null,null,null,"","",null,null,null,null,null,null,null,null,null,null,null,null,-75,-63]
[20,null,null,null,"","",null,null,null,null,null,null,null,null,null,null,null,null,"Più75","più63"]
[21,null,null,null,"","",null,null,null,null,null,null,null,null,null,null,null,null,"Seniores (18-40 anni)","Veterani A-B"]
[22,null,null,null,"","",null,null,null,null,null,null,null,null,null,null,null,null,-62,-55]
[23,null,null,null,"","",null,null,null,null,null,null,null,null,null,null,null,null,-68,-63]
[24,null,null,null,"","",null,null,null,null,null,null,null,null,null,null,null,null,-74,-71]
[25,null,null,null,"","",null,null,null,null,null,null,null,null,null,null,null,null,-80,-78]
[26,null,null,null,"","",null,null,null,null,null,null,null,null,null,null,null,null,"Più80","più78"]
[27,null,null,null,"","",null,null,null,null,null,null,null,null,null,null,null,null,"Veterani A-B"]
[28,null,null,null,"","",null,null,null,null,null,null,null,null,null,null,null,null,-62]
[29,null,null,null,"","",null,null,null,null,null,null,null,null,null,null,null,null,-68]
[30,null,null,null,"","",null,null,null,null,null,null,null,null,null,null,null,null,-74]
[31,null,null,null,"","",null,null,null,null,null,null,null,null,null,null,null,null,-80]
[32,null,null,null,"","",null,null,null,null,null,null,null,null,null,null,null,null,-85]
[33,null,null,null,"","",null,null,null,null,null,null,null,null,null,null,null,null,"Più85"]
[34,null,null,null,"",""]
[35,null,null,null,"",""]
[36,null,null,null,"",""]
[37,null,null,null,"",""]
[38,null,null,null,"",""]
[39,null,null,null,"",""]
[40,null,null,null,"",""]
[]
[]
[null,"N.B. La coonna ANNI si compila auomaticamente"]

{"sheet":"KUMITE IPPON Girone B","index":10,"n_rows":47,"n_cols":17,"rows_kept":47,"cut":false,"hidden":false,"merged":[[0,1,0,2],[1,2,1,3],[46,1,46,2],[2,2,2,5]]}
[null,"PRIMA OPEN CUP"]
[null,"Società:","Nome società"]
[null,"Specialità:","GIRONE \"B\" KUMTE Tradizionale SHOBU IPPON "]
["NR,","COGNOME","NOME","Data di Nascita","Anni","Categoria","M/F","Peso  M.","Peso F.","Cintura"]
[1,null,null,null,{"$f":"IF(D5=\"\",\"\",DATEDIF(D5,TODAY(),\"Y\"))","v":""},{"$f":"IF(D5=\"\",\"\",IF(E5>39,\"40 anni\",IF(E5>17,\"Seniores 18-39 anni\",IF(E5>17,\"Seniores 18-40 anni\",IF(E5>15,\"Juniores 16-17 anni\",\"Cadetti 14- 15 anni\")))))","v":""}]
[2,null,null,null,"",{"$f":"IF(D6=\"\",\"\",IF(E6>39,\"40 anni\",IF(E6>17,\"Seniores 18-39 anni\",IF(E6>17,\"Seniores 18-40 anni\",IF(E6>15,\"Juniores 16-17 anni\",\"Cadetti 14- 15 anni\")))))","v":""}]
[3,null,null,null,"",""]
[4,null,null,null,"","",null,null,null,null,null,null,null,null,null,"Cadetti 14- 15 anni","Maschio"]
[5,null,null,null,"","",null,null,null,null,null,null,null,null,null,"Juniores 16-17 anni","Femmina"]
[6,null,null,null,"","",null,null,null,null,null,null,null,null,null,"Seniores 18-39anni"]
[7,null,null,null,"","",null,null,null,null,null,null,null,null,null," +40 anni"]
[8,null,null,null,"",""]
[9,null,null,null,"",""]
[10,null,null,null,"",""]
[11,null,null,null,"",""]
[12,null,null,null,"","",null,null,null,null,null,null,null,null,null,"Open"]
[13,null,null,null,"",""]
[14,null,null,null,"","",null,null,null,null,null,null,null,null,"Marrone"]
[15,null,null,null,"","",null,null,null,null,null,null,null,null,"Nera"]
[16,null,null,null,"",""]
[17,null,null,null,"",""]
[18,null,null,null,"",""]
[19,null,null,null,"",""]
[20,null,null,null,"",""]
[21,null,null,null,"",""]
[22,null,null,null,"",""]
[23,null,null,null,"",""]
[24,null,null,null,"",""]
[25,null,null,null,"",""]
[26,null,null,null,"",""]
[27,null,null,null,"",""]
[28,null,null,null,"",""]
[29,null,null,null,"",""]
[30,null,null,null,"",""]
[31,null,null,null,"",""]
[32,null,null,null,"",""]
[33,null,null,null,"",""]
[34,null,null,null,"",""]
[35,null,null,null,"",""]
[36,null,null,null,"",""]
[37,null,null,null,"",""]
[38,null,null,null,"",""]
[39,null,null,null,"",""]
[40,null,null,null,"",""]
[]
[]
[null,"N.B. La coonna ANNI si compila auomaticamente"]

{"sheet":"kata shotokan tradizionale","index":11,"n_rows":47,"n_cols":22,"rows_kept":47,"cut":false,"hidden":false,"merged":[[0,1,0,2],[1,2,1,3],[46,1,46,2],[2,2,2,6]]}
[null,"PRIMA OPEN CUP"]
[null,"Società:","Nome società"]
[null,"Specialità:","Girone \"B\"Kata SHOTOKAN Tradizionale"]
["NR,","COGNOME","NOME","Data di Nascita","Anni","Cintura","M/F","Categoria","Categoria"," "]
[1,"a",null,null,{"$f":"IF(D5=\"\",\"\",DATEDIF(D5,TODAY(),\"Y\"))","v":""},null,null,{"$f":"IF(C5=\"\",\"\",IF(D5>50,F5&\"40+\",IF(D5>40,F5&\"40+\",IF(D5>17,F5&\"18-40 anni\",IF(D5>15,F5&\"16-17 anni\",IF(D5>13,F5&\"14-15 anni\",IF(D5>11,\"12-13 anni misto\",IF(D5>9,\"10-11 anni misto\",IF(D5>7,\"7-9 anni misto\",\"Fino a 6anni misto\")))))))))","v":""},{"$f":"IF(D5=\"\",\"\",IF(E5>50,G5&\"40+\",IF(E5>40,G5&\"40+\",IF(E5>17,G5&\"18-40 anni\",IF(E5>15,G5&\"16-17 anni\",IF(E5>13,G5&\"14-15 anni\",IF(E5>11,\"12-13 anni misto\",IF(E5>9,\"10-11 anni misto\",IF(E5>7,\"7-9 anni misto\",\"Fino a 6anni misto\")))))))))","v":""},null,null,"Maschile "]
[2,"b",null,null,{"$f":"IF(D6=\"\",\"\",DATEDIF(D6,TODAY(),\"Y\"))","v":""},null,null,{"$f":"IF(D6=\"\",\"\",IF(E6>50,\"Veterani B 51-65anni\",IF(E6>40,\"Veterani A 41-50 anni\",IF(E6>17,\"Seniores 18-40 anni\",IF(E6>15,\"Juniores 16-17 anni\",IF(E6>13,\"Cadetti 14- 15 anni\",IF(E6>11,\"Esordienti (12-13 anni)\",IF(E6>9,\"Speranze (10-11 anni)\",IF(E6>7,\"Ragazzi (8-9 anni)\",\"Bambini 6-7 anni\")))))))))","v":""},{"$f":"IF(D6=\"\",\"\",IF(E6>50,G6&\"40+\",IF(E6>40,G6&\"40+\",IF(E6>17,G6&\"18-40 anni\",IF(E6>15,G6&\"16-17 anni\",IF(E6>13,G6&\"14-15 anni\",IF(E6>11,\"12-13 anni misto\",IF(E6>9,\"10-11 anni misto\",IF(E6>7,\"7-9 anni misto\",\"Fino a 6anni misto\")))))))))","v":""},null,null,"Femminile ",null,null,null,null,null,null,null,null,null,"Bianca"]
[3,"C",null,null,"",null,null,"","",null,null,null,null,null,null,null,null,null,null,null,null,"GIALLA /ARANCIO"]
[4,"d",null,null,"",null,null,"","",null,null,null,null,"Categorie",null,null,null,null,null,null,null,"VERDE/BLU"]
[5,"e",null,null,"",null,null,"","",null,null,null,null,null,null,null,null,null,null,null,null,"MARRONE"]
[6,"f",null,null,"",null,null,"","",null,null,null,null,"Fino a 6anni misto",null,null,null,null,null,null,null,"NERA"]
[7,"g",null,null,"",null,null,"","",null,null,null,null,"7-9 anni misto"]
[8,"h",null,null,"",null,null,"","",null,null,null,null,"10-11 anni misto"]
[9,"f",null,null,"",null,null,"","",null,null,null,null,"12-13 anni misto"]
[10,null,null,null,"",null,null,"",""]
[11,null,null,null,"",null,null,"","",null,null,null,null,"Maschile 14-15 anni"]
[12,null,null,null,"",null,null,"","",null,null,null,null,"Maschile 16-17 anni"]
[13,null,null,null,"",null,null,"","",null,null,null,null,"Maschile 18-39 anni"]
[14,null,null,null,"",null,null,"","",null,null,null,null,"Maschile 40+"]
[15,null,null,null,"",null,null,"",""]
[16,null,null,null,"",null,null,"","",null,null,null,null,"Femminile 14-15 anni"]
[17,null,null,null,"",null,null,"","",null,null,null,null,"Femminile 16-17 anni"]
[18,null,null,null,"",null,null,"","",null,null,null,null,"Femminile 18-39 anni"]
[19,null,null,null,"",null,null,"","",null,null,null,null,"Femminile 40+"]
[20,null,null,null,"",null,null,"",""]
[21,null,null,null,"",null,null,"",""]
[22,null,null,null,"",null,null,"",""]
[23,null,null,null,"",null,null,"",""]
[24,null,null,null,"",null,null,"",""]
[25,null,null,null,"",null,null,"",""]
[26,null,null,null,"",null,null,"",""]
[27,null,null,null,"",null,null,"",""]
[28,null,null,null,"",null,null,"",""]
[29,null,null,null,"",null,null,"",""]
[30,null,null,null,"",null,null,"",""]
[31,null,null,null,"",null,null,"",""]
[32,null,null,null,"",null,null,"",""]
[33,null,null,null,"",null,null,"",""]
[34,null,null,null,"",null,null,"",""]
[35,null,null,null,"",null,null,"",""]
[36,null,null,null,"",null,null,"",""]
[37,null,null,null,"",null,null,"",""]
[38,null,null,null,"",null,null,"",""]
[39,null,null,null,"",null,null,"",""]
[40,null,null,null,"",null,null,"",""]
[]
[]
[null,"N.B. La coonna ANNI si compila auomaticamente"]

{"sheet":"Foglio1","index":12,"n_rows":0,"n_cols":0,"rows_kept":0,"cut":false,"hidden":false,"merged":[]}